bitfinex-derivatives/quotes_ETHF0:USTF0_20251223
["timestamp","ask_amount","ask_price","bid_price","bid_amount"]
[1766507374341,3.382,2956.5,2955.3,3.382]
[1766507374538,3.382,2956.5,2955.6,0.00507228]
[1766507374539,0.00507228,2956.2,2955.6,0.00507228]
[1766507374737,3.382,2956.4,2955.6,3.38707228]
[1766507374938,3.382,2956.4,2955.6,3.38988045]
[1766507375741,0.00507228,2956.3,2955.6,3.38988045]
[1766507376551,0.00507228,2956.3,2955.6,0.00788045]
[1766507377245,0.00507228,2956.3,2955.6,3.38988045]
[1766507380840,0.16919,2956.6,2955.6,3.38988045]
[1766507381040,3.383,2956.5,2955.6,3.38988045]
[1766507384046,3.383,2956.5,2955.7,3.799]
[1766507384943,3.383,2957.0,2955.8,5.971]
[1766507385137,3.383,2957.0,2955.9,3.383]
[1766507385341,3.383,2957.0,2956.0,3.799]
[1766507387246,0.24926,2957.2,2956.0,3.799]
[1766507387452,3.383,2957.1,2956.1,3.799]
[1766507387648,3.383,2957.1,2956.2,3.383]
[1766507388353,0.16916,2957.2,2956.2,3.383]
[1766507392760,0.16916,2957.2,2956.2,7.182]
[1766507397652,3.383,2957.1,2956.2,7.182]
[1766507398659,3.383,2957.1,2956.3,3.799]
[1766507400566,3.383,2957.5,2956.4,3.799]
[1766507400763,3.383,2957.5,2956.5,3.383]
[1766507400962,3.383,2958.1,2956.6,8.459]
[1766507401265,0.00310575,2958.2,2956.6,8.459]
[1766507401462,0.00310575,2958.2,2957.1,0.00507228]
[1766507401665,0.00310575,2958.2,2957.2,9.354]
[1766507404959,42.989,2958.7,2957.2,9.354]
[1766507404960,40.8,2958.7,2957.2,9.354]
[1766507405266,0.16905,2959.1,2957.2,9.354]
[1766507405456,3.383,2958.9,2957.2,9.354]
[1766507405661,3.383,2958.9,2957.3,2.04143734]
[1766507405862,3.383,2958.9,2957.4,8.457]
[1766507406064,3.38685319,2958.9,2957.5,3.383]
[1766507407369,0.16905,2959.1,2957.5,37.212]
[1766507407669,3.382,2959.2,2957.5,37.212]
[1766507407866,0.16903,2959.5,2957.7,2.04143734]
[1766507408059,0.16903,2959.5,2957.8,9.353]
[1766507408460,0.17342417,2959.5,2957.8,9.3562744]
[1766507409969,3.55099,2960.2,2958.5,2.04143734]
[1766507410271,3.55099,2960.2,2959.1,0.00507228]
[1766507410466,5.42343734,2960.2,2959.1,0.00907228]
[1766507410669,0.16902,2959.7,2959.2,3.382]
[1766507410864,3.55398874,2959.7,2959.1,0.00507228]
[1766507411376,0.17198874,2959.7,2959.1,0.00507228]
[1766507412060,0.00296874,2959.7,2959.1,0.00507228]
[1766507412465,3.382,2961.0,2959.2,2.04143734]
[1766507412669,3.55094,2961.0,2959.3,17.227]
[1766507412871,40.96895,2960.9,2959.3,17.227]
[1766507413170,2.04143734,2960.4,2959.4,3.381]
[1766507413374,2.04143734,2960.0,2959.1,0.00507228]
[1766507413673,2.04143734,2959.6,2958.5,3.381]
[1766507413876,3.55003,2959.5,2958.3,3.381]
[1766507414677,3.55003,2959.5,2958.6,0.00507228]
[1766507414678,0.00507228,2959.2,2958.6,0.00507228]
[1766507414975,3.381,2959.7,2958.7,3.381]
[1766507415669,2.04143734,2959.6,2958.6,0.00507228]
[1766507415871,0.16903,2959.5,2958.6,0.00507228]
[1766507416177,3.381,2959.4,2958.6,0.00507228]
[1766507417369,2.21048734,2959.2,2957.5,8.453]
[1766507417578,3.381,2959.1,2958.0,3.381]
[1766507418373,3.381,2959.1,2957.8,0.0032744]
[1766507418666,3.381,2959.1,2957.9,3.381]
[1766507419177,0.16906,2959.0,2957.9,3.381]
[1766507419376,0.16906,2959.0,2958.2,0.00507228]
[1766507419584,0.16908,2958.6,2957.6,3.381]
[1766507419883,3.381,2958.5,2957.6,3.381]
[1766507420075,3.381,2958.5,2956.0,2.04143734]
[1766507420280,2.21052734,2958.4,2956.1,46.061]
[1766507420778,2.21542734,2958.4,2957.0,0.00507228]
[1766507421078,2.21052734,2958.4,2957.1,9.353]
[1766507421276,2.21052734,2958.4,2957.0,5.15807228]
[1766507421477,2.21052734,2958.4,2957.2,3.381]
[1766507421674,0.00507228,2958.1,2957.2,3.381]
[1766507421879,3.39032589,2958.1,2957.2,3.381]
[1766507422981,2.04143734,2957.5,2956.1,0.00356613]
[1766507423278,3.381,2957.4,2956.2,3.381]
[1766507423478,11.14958734,2957.4,2956.1,0.00356613]
[1766507424070,1.80322322,2957.1,2956.5,0.00507228]
[1766507424269,1.80322322,2956.8,2956.1,0.00356613]
[1766507424678,3.381,2956.7,2956.1,0.00356613]
[1766507425281,3.381,2956.7,2956.1,0.00863841]
[1766507426183,0.16916,2957.1,2956.1,3.39063841]
[1766507426375,5.18522322,2957.0,2956.1,3.39063841]
[1766507426683,1.80322322,2956.7,2955.9,3.382]
[1766507426886,3.382,2956.6,2955.9,3.382]
[1766507427279,1.80322322,2956.7,2955.9,3.382]
[1766507427280,0.00425361,2958.1,2955.9,3.382]
[1766507427477,1.80322322,2957.8,2955.9,3.382]
[1766507427682,0.00507228,2957.1,2956.6,0.00507228]
[1766507427982,0.00507228,2957.1,2956.7,3.382]
[1766507428976,0.00507228,2957.1,2956.6,0.00507228]
[1766507429183,3.382,2957.5,2956.6,0.00507228]
[1766507429483,3.382,2957.5,2956.7,3.382]
[1766507430078,0.00507228,2957.4,2956.7,3.382]
[1766507430285,0.00985361,2958.1,2956.7,3.382]
[1766507430478,3.38625361,2958.1,2956.7,3.382]
[1766507430982,5.18947683,2958.1,2956.8,17.812]
[1766507431385,0.00507228,2957.7,2956.8,17.812]
[1766507431877,1.80322322,2957.5,2956.9,3.382]
[1766507432074,1.80322322,2957.2,2956.6,3.38707228]
[1766507432777,1.80322322,2957.2,2955.9,0.0026886]
[1766507432778,3.382,2957.1,2955.9,0.0026886]
[1766507432978,1.80322322,2956.9,2955.9,0.0026886]
[1766507433280,3.382,2956.8,2956.0,3.382]
[1766507433880,3.382,2956.8,2956.1,0.00507228]
[1766507435685,3.382,2956.8,2955.9,0.0026886]
[1766507436682,3.382,2956.8,2956.1,0.00507228]
[1766507436882,3.55118,2956.8,2955.9,0.0026886]
[1766507437388,1.80322322,2956.6,2955.9,0.0026886]
[1766507437686,3.383,2956.5,2955.9,0.0026886]
[1766507437989,3.383,2956.5,2955.9,0.00607012]
[1766507439880,3.383,2956.5,2955.7,3.383]
[1766507440280,0.16915,2957.4,2955.7,3.383]
[1766507440480,0.005,2957.2,2955.7,3.383]
[1766507440681,3.55215,2957.3,2955.7,3.383]
[1766507440880,0.00507228,2956.8,2955.7,3.38541162]
[1766507441181,0.00507228,2956.8,2955.8,5.974]
[1766507441382,0.00507228,2956.8,2955.8,9.357]
[1766507441579,3.383,2956.7,2955.8,9.357]
[1766507441787,3.383,2956.7,2955.7,0.00241162]
[1766507441977,1.80322322,2956.6,2955.7,0.00241162]
[1766507443284,1.97241322,2956.6,2955.7,0.00241162]
[1766507446387,0.1692,2956.5,2955.7,1.162e-05]
[1766507446583,3.383,2956.4,2955.7,1.162e-05]
[1766507449390,3.5522,2956.4,2955.7,1.162e-05]
[1766507451787,1.97243322,2956.3,2955.7,1.162e-05]
[1766507451984,1.97243322,2956.3,2955.5,3.383]
[1766507452990,1.97243322,2956.3,2955.5,3.38674108]
[1766507453190,1.97243322,2956.3,2955.5,1.22944108]
[1766507454295,1.97243322,2956.3,2955.5,1.22444108]
[1766507454797,0.16921,2956.3,2955.5,1.22444108]
[1766507456598,0.16921,2956.3,2955.5,0.00374108]
[1766507461200,0.16921,2956.3,2955.6,3.384]
[1766507463506,3.384,2956.2,2955.5,3.38774108]
[1766507464601,5.18722322,2956.2,2955.5,0.00374108]
[1766507464998,1.80322322,2955.9,2955.1,3.49699999]
[1766507465193,1.80322322,2955.9,2954.1,0.16933]
[1766507465194,1.80322322,2955.6,2953.7,33.842]
[1766507465402,3.384,2955.5,2954.1,17.819]
[1766507465598,1.97242322,2956.5,2954.2,1.80322322]
[1766507465806,3.5532,2956.4,2954.5,1.80322322]
[1766507466009,3.384,2956.4,2954.6,3.384]
[1766507466203,3.38668662,2956.4,2954.7,1.102]
[1766507466506,0.00507228,2955.8,2955.3,0.00507228]
[1766507466704,0.00507228,2955.8,2955.4,3.384]
[1766507467906,3.384,2956.1,2955.4,3.384]
[1766507468807,0.00507228,2956.0,2955.4,3.384]
[1766507471808,0.00507228,2956.0,2955.4,0.9478]
[1766507472006,0.00507228,2956.0,2955.3,0.00507228]
[1766507473913,3.38907228,2956.0,2955.3,0.00507228]
[1766507474907,0.00507228,2956.0,2955.3,0.00507228]
[1766507475509,0.00268662,2956.4,2955.3,0.00507228]
[1766507476413,0.00268662,2956.4,2955.4,0.24820001]
[1766507476612,0.00268662,2956.4,2955.5,3.384]
[1766507477009,0.00268662,2956.4,2955.3,0.26177228]
[1766507477313,3.38668662,2956.4,2955.4,3.384]
[1766507477508,0.00507228,2956.2,2955.4,3.384]
[1766507477707,0.00268662,2956.4,2955.4,3.384]
[1766507478608,0.00507228,2956.2,2955.4,3.384]
[1766507479617,0.00268662,2956.4,2955.4,3.384]
[1766507480614,0.00338152,2956.2,2955.4,3.384]
[1766507480920,0.00268662,2956.4,2955.4,3.384]
[1766507482319,1.97511984,2956.4,2955.4,3.384]
[1766507483021,0.17189662,2956.4,2955.4,3.384]
[1766507483920,1.16904334,2956.3,2955.4,3.384]
[1766507486024,0.17189662,2956.4,2955.4,4.55274514]
[1766507486417,0.17189662,2956.4,2955.4,3.384]
[1766507486815,0.17189662,2956.4,2955.3,0.26157228]
[1766507487125,1.16874514,2956.2,2955.4,3.384]
[1766507487331,4.55274514,2956.2,2955.4,3.384]
[1766507488544,3.384,2956.2,2955.4,3.384]
[1766507488835,0.00268662,2956.4,2955.4,4.55274514]
[1766507489623,3.384,2956.8,2955.7,1.16874514]
[1766507489827,0.16918,2956.9,2955.8,3.384]
[1766507490035,3.384,2957.2,2955.9,12.587]
[1766507490224,3.384,2957.2,2955.9,12.83520001]
[1766507490431,3.384,2957.2,2955.9,12.587]
[1766507490737,1.16874514,2957.1,2955.9,12.587]
[1766507491434,0.16918,2956.9,2955.9,12.587]
[1766507494033,0.16918,2956.9,2955.3,0.00507228]
[1766507494337,0.16918,2956.9,2955.4,51.658]
[1766507497340,3.383,2956.9,2955.5,3.383]
[1766507497635,5.4262382,2956.9,2955.6,9.364]
[1766507497838,8.7332382,2956.9,2955.6,9.364]
[1766507498442,0.16919,2956.6,2955.6,9.364]
[1766507498641,3.5522,2956.5,2955.3,0.00507228]
[1766507498833,3.383,2956.4,2955.4,9.364]
[1766507501442,3.383,2956.4,2955.5,3.383]
[1766507501737,3.383,2956.4,2955.3,0.00507228]
[1766507501738,3.55221,2956.4,2955.3,0.00507228]
[1766507502443,0.16922,2956.2,2955.3,0.00507228]
[1766507502641,3.384,2956.1,2955.3,0.00507228]
[1766507503039,3.384,2956.1,2955.2,3.383]
[1766507503040,0.00507228,2956.0,2954.5,0.002392]
[1766507503238,0.17430228,2956.0,2954.6,3.384]
[1766507503433,0.17430228,2956.0,2954.5,0.002392]
[1766507503434,0.00507228,2956.0,2954.5,0.002392]
[1766507503647,2.0432382,2955.7,2954.6,3.384]
[1766507503847,3.384,2955.6,2954.6,3.384]
[1766507504036,3.384,2955.6,2954.8,0.00507228]
[1766507504541,3.384,2955.6,2953.9,0.259]
[1766507504542,0.16929,2955.0,2953.9,0.259]
[1766507504732,0.16929,2955.0,2952.7,4.34015088]
[1766507504733,0.16929,2955.0,2953.6,3.384]
[1766507504936,0.16929,2955.0,2953.7,3.384]
[1766507505241,0.16929,2955.0,2953.1,0.002392]
[1766507505442,0.16929,2955.0,2953.2,14.802]
[1766507505739,0.00507228,2954.4,2953.8,0.00507228]
[1766507505948,0.00507228,2954.4,2953.9,3.384]
[1766507507143,0.00507228,2954.4,2953.8,0.00507228]
[1766507507336,0.00507228,2954.4,2953.2,0.00428479]
[1766507507542,3.38907228,2954.4,2953.6,0.002392]
[1766507507741,3.38907228,2954.4,2953.6,3.386392]
[1766507508235,3.38907228,2954.4,2953.6,3.384]
[1766507508431,3.38907228,2954.4,2953.2,0.00428479]
[1766507508644,3.38907228,2954.4,2953.3,3.384]
[1766507509845,0.00507228,2954.4,2953.3,3.384]
[1766507510051,3.385,2954.3,2953.2,5.59458479]
[1766507510346,3.385,2954.3,2953.4,0.002392]
[1766507510846,3.385,2954.3,2953.6,0.00507228]
[1766507511744,3.385,2954.3,2953.2,0.00428479]
[1766507512045,9.602,2954.3,2953.2,3.38928479]
[1766507512241,9.602,2954.3,2953.2,0.00428479]
[1766507512644,2.2125782,2954.1,2953.2,0.00428479]
[1766507512851,3.385,2954.0,2953.2,0.00428479]
[1766507513043,3.385,2954.0,2953.1,3.385]
[1766507513440,0.16935,2953.9,2952.7,0.19863721]
[1766507513647,2.0432382,2953.9,2952.7,0.19863721]
[1766507513848,2.0432382,2953.9,2952.7,3.58363721]
[1766507514044,40.8,2953.8,2952.7,3.58680366]
[1766507514243,3.385,2953.7,2952.7,3.58680366]
[1766507515649,9.609,2953.7,2952.7,3.58680366]
[1766507516748,9.609,2953.7,2950.3,6.34322405]
[1766507516749,2.0432382,2953.5,2951.3,0.43794751]
[1766507516956,0.00507228,2952.7,2952.3,0.002392]
[1766507517156,3.386,2953.4,2952.4,3.386]
[1766507517857,3.38961508,2953.4,2952.4,3.38864078]
[1766507518057,0.00507228,2953.2,2952.6,0.00507228]
[1766507519861,0.16936,2953.7,2952.6,0.00507228]
[1766507520154,0.16936,2953.7,2952.7,3.386]
[1766507520361,3.386,2953.6,2952.7,3.386]
[1766507520550,3.386,2953.6,2952.6,0.00507228]
[1766507520748,0.00507228,2953.4,2952.6,3.39107228]
[1766507521049,3.386,2953.3,2952.6,0.00507228]
[1766507521247,3.55538,2953.3,2950.7,2.0432382]
[1766507521553,3.55538,2953.3,2950.6,15.0383025]
[1766507521554,2.0432382,2953.1,2951.3,0.002392]
[1766507521851,2.161,2953.2,2950.6,11.6533025]
[1766507521852,2.0432382,2952.3,2950.6,11.6533025]
[1766507522053,3.386,2952.2,2950.7,9.371]
[1766507522251,0.16941,2952.9,2951.2,0.00508096]
[1766507522458,3.55541,2952.8,2951.3,3.386]
[1766507522660,3.386,2952.7,2951.4,0.004]
[1766507523455,0.00508096,2952.3,2951.4,0.004]
[1766507523967,3.387,2953.0,2951.4,0.004]
[1766507524264,3.387,2953.2,2951.4,0.004]
[1766507524455,3.55639,2953.2,2951.4,0.004]
[1766507524760,0.00508096,2952.6,2951.4,0.004]
[1766507525454,0.00508096,2952.6,2951.5,11.854]
[1766507525658,0.00508096,2952.6,2951.5,17.841]
[1766507526851,0.00508096,2952.6,2951.5,3.387]
[1766507528455,0.00410164,2953.4,2951.6,35.9172382]
[1766507528762,3.387,2953.7,2951.7,14.62547]
[1766507528959,3.387,2953.7,2951.8,3.387]
[1766507529258,3.55636,2953.7,2952.2,0.002392]
[1766507529466,0.00508096,2953.2,2952.7,0.00508096]
[1766507529664,0.00508096,2953.2,2952.8,3.387]
[1766507529964,0.00268452,2953.2,2952.8,0.00288028]
[1766507530462,3.387,2953.1,2952.7,0.00508096]
[1766507530658,3.387,2953.1,2952.7,7e-08]
[1766507531163,3.387,2953.1,2952.8,0.002392]
[1766507531658,2.0432382,2954.1,2952.9,3.387]
[1766507531860,3.387,2954.0,2952.9,3.387]
[1766507532164,3.387,2954.0,2952.9,3.389392]
[1766507532655,0.00508096,2953.7,2952.9,3.389392]
[1766507532965,3.39208096,2953.7,2952.9,3.389392]
[1766507533665,0.00508096,2953.7,2952.9,3.389392]
[1766507533965,0.00430578,2954.0,2952.9,3.389392]
[1766507534264,3.387,2953.9,2952.9,3.389392]
[1766507534760,2.2125282,2954.9,2953.0,8.468]
[1766507535063,0.00336697,2954.2,2953.0,8.468]
[1766507535255,3.39036697,2954.2,2953.0,8.468]
[1766507535456,3.39036697,2954.2,2953.3,0.002392]
[1766507535657,3.39036697,2954.2,2953.4,3.387]
[1766507535856,3.39469973,2954.2,2953.4,3.387]
[1766507541061,0.16934,2954.1,2951.3,5.4282382]
[1766507541270,3.387,2954.0,2953.1,0.002392]
[1766507543068,3.55634,2954.0,2953.1,0.002392]
[1766507543265,2.0432382,2953.9,2952.8,0.00426152]
[1766507543466,3.387,2954.0,2951.2,0.1695]
[1766507543467,0.16938,2953.3,2952.3,3.387]
[1766507543668,3.55638,2953.3,2952.4,3.387]
[1766507543873,3.55638,2953.3,2952.5,3.387]
[1766507544460,0.16939,2953.2,2952.5,3.39096105]
[1766507545059,3.387,2953.3,2952.0,8.472]
[1766507545060,3.4775,2953.3,2952.1,3.387]
[1766507545274,0.16941,2952.9,2952.1,3.387]
[1766507545572,3.387,2952.8,2952.2,0.00508096]
[1766507546275,3.387,2952.8,2952.2,0.00810968]
[1766507547065,0.16938,2953.4,2952.2,0.00810968]
[1766507547474,0.16938,2953.3,2952.2,0.00810968]
[1766507547670,3.387,2953.2,2952.2,0.00810968]
[1766507548175,1.97723616,2953.0,2952.2,0.00810968]
[1766507548381,3.387,2952.9,2952.2,0.00810968]
[1766507548568,1.97725616,2952.7,2952.0,3.387]
[1766507548768,3.387,2952.6,2951.7,3.387]
[1766507548970,3.55643,2952.6,2951.7,3.387]
[1766507549769,0.00508096,2952.4,2951.9,0.00508096]
[1766507552380,0.00508096,2952.4,2951.6,0.007]
[1766507552381,1.80783616,2952.2,2951.6,0.007]
[1766507552567,1.80783616,2952.2,2950.5,33.878]
[1766507552772,1.97728616,2952.2,2950.6,17.844]
[1766507553277,1.80783616,2951.9,2950.6,17.844]
[1766507553465,5.19744573,2951.9,2951.0,0.00508096]
[1766507553672,5.19744573,2951.9,2951.1,3.387]
[1766507554574,5.19744573,2951.9,2951.1,3.388]
[1766507554780,5.19744573,2951.9,2951.0,0.00508096]
[1766507555375,1.80783616,2951.6,2951.0,0.00508096]
[1766507555574,0.00260957,2951.9,2951.1,3.388]
[1766507556077,0.00508096,2952.4,2951.2,0.0877]
[1766507556277,3.39308096,2952.4,2951.1,3.388]
[1766507556580,5.20091712,2952.4,2951.1,3.388]
[1766507556975,5.20353153,2952.4,2951.0,0.09278096]
[1766507557180,5.20353153,2952.4,2951.1,16.875]
[1766507557574,5.37296153,2952.4,2951.1,16.875]
[1766507557882,1.80783616,2952.1,2951.1,16.875]
[1766507558078,0.16949,2951.5,2950.6,0.00303099]
[1766507558287,3.388,2951.4,2950.6,0.00303099]
[1766507559173,3.388,2951.4,2950.7,0.00508096]
[1766507559577,3.388,2951.4,2950.8,3.388]
[1766507561182,3.388,2951.4,2950.7,0.00508096]
[1766507561681,0.0906,2951.7,2950.7,0.00508096]
[1766507561984,3.388,2952.2,2950.8,5.99]
[1766507562177,3.388,2952.2,2950.9,11.859]
[1766507563389,0.00769537,2952.4,2950.9,11.859]
[1766507563878,3.388,2952.6,2951.1,1.80783616]
[1766507564082,3.388,2952.6,2951.2,3.388]
[1766507564277,3.7144,2953.0,2951.2,3.388]
[1766507564587,1.80783616,2953.5,2951.6,1.80783616]
[1766507564880,0.0905,2953.3,2952.3,0.00508096]
[1766507565081,3.388,2953.4,2952.4,3.388]
[1766507565274,3.4785,2953.4,2952.4,3.388]
[1766507565475,3.388,2953.4,2952.4,3.388]
[1766507565878,3.388,2953.4,2952.3,3.18908096]
[1766507565879,1.80783616,2952.9,2952.3,0.00508096]
[1766507566180,3.388,2953.0,2952.3,0.00508096]
[1766507567774,3.5574,2953.0,2950.8,0.16952]
[1766507568084,3.5574,2953.0,2950.7,0.08549999]
[1766507568085,0.16942,2952.7,2950.7,0.08549999]
[1766507568284,3.55742,2952.6,2950.6,1.81086715]
[1766507568484,3.55742,2952.6,2950.8,8.524]
[1766507568779,1.97727616,2952.4,2950.8,8.524]
[1766507568972,3.55744,2952.3,2951.3,0.00508096]
[1766507569177,1.80783616,2952.1,2951.3,0.00508096]
[1766507569477,3.388,2952.0,2951.3,0.00508096]
[1766507570384,3.388,2952.0,2951.2,3.388]
[1766507571285,0.00508096,2951.9,2951.3,0.00508096]
[1766507571577,0.00508096,2951.9,2951.4,0.0877]
[1766507571784,0.00508096,2951.9,2951.3,0.00508096]
[1766507572775,0.00508096,2951.9,2951.2,3.388]
[1766507572776,1.80783616,2951.8,2951.2,3.388]
[1766507572975,1.80783616,2951.8,2950.7,3.208]
[1766507573176,1.80783616,2951.8,2950.6,0.00303099]
[1766507573177,1.97732616,2951.5,2950.6,0.00303099]
[1766507573376,3.388,2951.4,2950.6,3.39103099]
[1766507573580,3.39217463,2951.4,2950.6,3.39103099]
[1766507573782,3.39217463,2951.4,2950.7,0.00508096]
[1766507574879,0.00417463,2951.4,2950.7,0.00508096]
[1766507579490,0.00417463,2951.4,2950.8,3.389]
[1766507579881,1.81201079,2951.4,2950.8,3.389]
[1766507580590,0.00417463,2951.4,2950.8,3.389]
[1766507580795,0.16945,2952.2,2950.8,3.389]
[1766507581688,0.1724162,2952.2,2950.8,3.389]
[1766507581887,0.00508096,2951.8,2950.8,3.389]
[1766507582095,0.1724162,2952.2,2950.8,3.389]
[1766507582985,0.00508096,2951.8,2950.8,3.389]
[1766507584290,0.0029662,2952.2,2950.8,3.389]
[1766507584495,0.16941,2952.8,2950.9,1.80783616]
[1766507584694,0.16941,2952.8,2951.0,33.893]
[1766507584993,0.16941,2952.8,2951.1,17.854]
[1766507585194,0.00508096,2952.2,2951.1,17.854]
[1766507585394,0.00795323,2952.2,2951.1,17.854]
[1766507585785,0.16941,2952.8,2951.2,1.80783616]
[1766507585981,0.16941,2952.8,2951.2,1.89553616]
[1766507586186,0.16941,2952.8,2951.2,1.80783616]
[1766507586488,1.20899651,2954.7,2951.8,1.80783616]
[1766507586689,0.00508096,2952.9,2952.4,0.00508096]
[1766507586997,3.71081913,2953.5,2952.5,6.627]
[1766507587687,5.51865529,2953.5,2952.5,6.627]
[1766507587886,0.00336704,2953.3,2952.5,6.627]
[1766507588595,0.15244913,2953.5,2952.5,6.627]
[1766507588896,40.8,2954.6,2952.5,6.627]
[1766507588897,5.19583616,2954.1,2952.5,6.627]
[1766507589102,1.80783616,2953.8,2952.4,0.19488096]
[1766507589297,1.80783616,2953.5,2952.5,8.672]
[1766507589494,5.19583616,2953.5,2952.6,3.388]
[1766507589696,3.39207965,2953.5,2952.6,3.388]
[1766507589892,0.00407965,2953.5,2952.6,3.388]
[1766507590098,0.16936,2953.6,2952.6,3.388]
[1766507590296,5.19583616,2954.1,2952.6,3.388]
[1766507590500,5.38853616,2954.1,2952.6,3.388]
[1766507590992,5.39183745,2954.1,2952.6,3.388]
[1766507591593,1.80783616,2953.5,2952.5,0.1927]
[1766507591794,1.80783616,2953.5,2952.6,3.613]
[1766507592189,5.19583616,2953.5,2952.6,3.613]
[1766507593298,1.80783616,2952.7,2949.9,2.95822405]
[1766507593598,1.80783616,2952.7,2951.2,17.853]
[1766507594102,3.388,2952.6,2951.2,17.853]
[1766507594297,3.388,2952.6,2951.6,0.00508096]
[1766507594505,0.00508096,2952.2,2951.7,3.388]
[1766507596301,3.388,2952.3,2951.7,3.388]
[1766507597406,3.388,2952.5,2951.7,3.388]
[1766507598403,2.00413616,2952.7,2951.7,3.388]
[1766507598705,3.388,2952.6,2951.7,3.388]
[1766507598892,1.80783616,2952.7,2951.7,3.388]
[1766507599096,3.388,2952.6,2951.7,3.388]
[1766507605102,1.80783616,2952.4,2951.7,3.388]
[1766507605403,1.80783616,2952.4,2951.2,3.388]
[1766507605404,1.80783616,2951.8,2951.2,3.388]
[1766507605599,1.80783616,2951.8,2950.9,9.384]
[1766507605600,1.81069216,2951.8,2950.9,9.384]
[1766507605794,3.388,2951.7,2950.9,9.384]
[1766507606398,0.00508096,2951.6,2951.0,0.00508096]
[1766507606803,3.388,2952.4,2951.0,0.00508096]
[1766507607208,1.80783616,2952.3,2951.0,0.00508096]
[1766507608008,0.00245685,2952.3,2951.0,0.00508096]
[1766507610404,0.17189685,2952.3,2951.0,0.00508096]
[1766507610705,0.00245685,2952.3,2951.0,0.00508096]
[1766507610917,3.388,2952.7,2951.0,0.00508096]
[1766507611410,3.55742,2952.7,2951.0,0.00508096]
[1766507611797,3.5611759,2952.7,2951.0,0.00508096]
[1766507612908,0.16942,2952.6,2951.0,0.00508096]
[1766507614608,2.21964887,2952.5,2951.0,0.00508096]
[1766507614912,3.388,2952.4,2951.0,0.00508096]
[1766507615305,0.16943,2952.5,2951.0,0.00508096]
[1766507615613,3.388,2952.4,2951.0,0.00508096]
[1766507616307,0.16944,2952.3,2951.0,0.00508096]
[1766507617012,2.05021887,2952.2,2951.0,0.00508096]
[1766507617214,3.388,2952.1,2951.0,0.00508096]
[1766507617909,3.55745,2952.1,2951.0,0.00508096]
[1766507619114,0.16945,2952.1,2951.0,0.00508096]
[1766507619412,3.388,2952.0,2951.0,0.00508096]
[1766507623312,0.16945,2952.1,2951.0,0.00508096]
[1766507623616,3.388,2952.0,2951.0,0.00508096]
[1766507624412,0.16945,2952.1,2951.0,0.00508096]
[1766507624612,3.388,2952.0,2951.0,0.00508096]
[1766507625221,0.16945,2952.1,2951.0,0.00508096]
[1766507625421,3.388,2952.0,2951.0,0.00508096]
[1766507625930,0.1731759,2952.7,2951.0,0.00508096]
[1766507626120,3.388,2952.6,2951.0,0.00508096]
[1766507626421,0.1731759,2952.7,2951.0,0.00508096]
[1766507626422,3.388,2952.5,2951.0,0.00508096]
[1766507626621,0.16944,2952.3,2951.0,0.00508096]
[1766507626814,3.55845,2952.2,2951.1,3.389]
[1766507632217,0.16945,2952.2,2951.1,3.389]
[1766507632412,0.0037559,2952.7,2951.1,3.389]
[1766507632816,0.16937,2953.5,2951.1,3.389]
[1766507632817,3.55837,2953.5,2951.4,2.21970887]
[1766507633023,3.55837,2953.5,2951.5,51.746]
[1766507633824,3.56200963,2953.5,2951.5,51.746]
[1766507634020,3.56200963,2953.5,2951.4,0.26189]
[1766507634021,0.1694,2953.1,2951.6,14.468]
[1766507634227,3.389,2953.0,2951.6,17.857]
[1766507640931,3.5584,2953.0,2951.2,0.1695]
[1766507641229,3.5584,2953.0,2951.4,8.471]
[1766507641528,2.05021887,2952.8,2951.4,8.471]
[1766507641726,3.388,2952.7,2951.4,8.471]
[1766507642328,3.55742,2952.7,2951.4,8.471]
[1766507644226,0.16942,2952.6,2951.4,8.471]
[1766507644422,2.05021887,2952.4,2951.0,0.00508096]
[1766507644732,3.388,2952.3,2951.1,9.4]
[1766507647631,3.388,2952.3,2951.2,9.4]
[1766507648328,0.16944,2952.3,2951.2,9.4]
[1766507651426,5.43821887,2952.4,2951.1,0.0883]
[1766507651630,2.05021887,2952.0,2951.1,3.388]
[1766507651931,3.388,2951.9,2951.1,3.388]
[1766507663140,3.388,2951.9,2951.0,0.00508096]
[1766507663346,3.388,2951.9,2951.1,3.389]
[1766507665154,0.24495,2952.2,2951.1,3.389]
[1766507665347,3.389,2952.1,2951.1,3.389]
[1766507670049,0.16945,2952.2,2951.1,3.389]
[1766507670256,3.55845,2952.2,2951.1,3.389]
[1766507677266,0.16945,2952.2,2951.1,3.389]
[1766507678154,1.97850534,2952.7,2951.1,3.389]
[1766507678464,3.389,2952.6,2951.1,3.389]
[1766507680870,3.55842,2952.6,2951.1,3.389]
[1766507682071,1.17224693,2952.1,2951.1,3.389]
[1766507683272,1.17224693,2951.9,2951.1,3.389]
[1766507683572,1.17224693,2951.6,2951.2,3.388]
[1766507683873,1.17224693,2951.8,2951.2,3.388]
[1766507684270,3.58095,2952.1,2951.2,3.388]
[1766507684571,0.16945,2952.1,2951.2,3.388]
[1766507684772,1.17224693,2951.9,2951.2,3.388]
[1766507685068,1.17224693,2951.7,2951.2,3.388]
[1766507685371,1.17224693,2951.7,2951.3,3.388]
[1766507686667,0.19295,2952.1,2951.3,3.388]
[1766507686868,1.17224693,2951.9,2951.3,3.388]
[1766507690770,1.17224693,2951.7,2951.3,3.388]
[1766507691075,5.401,2952.5,2951.0,0.00508096]